bitfinex-derivatives/quotes_ETHF0:USTF0_20241022
["timestamp","ask_amount","ask_price","bid_price","bid_amount"]
[1729634663135,0.34129,2638.3,2637.9,0.34133]
[1729634663338,0.3413,2638.2,2638.1,0.3413]
[1729634663735,7.0103,2638.5,2638.2,0.34128]
[1729634663736,0.34128,2638.3,2638.2,0.34128]
[1729634664237,0.8425,2638.5,2638.0,2.96]
[1729634664445,0.75816,2638.5,2638.4,0.34126]
[1729634664737,0.75816,2638.5,2637.8,3.6128]
[1729634664738,3.3769,2638.5,2637.8,3.6128]
[1729634664932,3.3769,2638.5,2637.9,0.85333]
[1729634664933,0.4169,2638.5,2637.9,0.85333]
[1729634665133,0.75816,2638.5,2638.4,0.34126]
[1729634665332,0.4169,2638.5,2638.4,0.34126]
[1729634665738,0.58538535,2639.1,2638.7,0.34123]
[1729634666052,0.58538535,2639.1,2638.7,0.34122]
[1729634666053,0.34121,2638.9,2638.7,0.34122]
[1729634666336,0.74869,2639.0,2638.5,0.3896]
[1729634666543,0.74869,2639.0,2638.8,0.3412]
[1729634666737,0.74869,2639.0,2638.5,0.3896]
[1729634667040,0.74869,2639.0,2638.8,0.34121]
[1729634667231,0.74869,2639.0,2638.8,0.3412]
[1729634667642,0.4075,2639.0,2638.9,0.3412]
[1729634667839,0.74869,2639.0,2638.9,0.3412]
[1729634669639,0.4075,2639.0,2638.5,0.3896]
[1729634669833,0.74869,2639.0,2638.8,0.34121]
[1729634670033,0.4075,2639.0,2638.8,0.34121]
[1729634670234,0.7487,2639.0,2638.5,0.3896]
[1729634670433,0.4075,2639.0,2638.7,0.34122]
[1729634670635,0.4075,2639.0,2638.5,0.3896]
[1729634670636,2.96,2638.9,2638.5,0.3896]
[1729634670844,0.34124,2638.6,2638.4,0.34126]
[1729634671043,0.4002,2638.5,2638.3,3.54907]
[1729634671236,0.4002,2638.5,2638.4,0.34126]
[1729634671941,0.4002,2638.5,2638.3,3.54907]
[1729634672638,0.4002,2638.5,2638.4,0.34126]
[1729634673551,0.4081,2638.9,2638.7,0.34122]
[1729634673552,0.3412,2638.9,2638.7,0.34122]
[1729634674046,0.3412,2638.9,2638.8,0.4099]
[1729634675437,0.3412,2638.9,2638.8,0.75111]
[1729634675843,0.74939,2639.0,2638.9,0.3412]
[1729634676542,0.4082,2639.0,2638.9,0.3412]
[1729634676943,0.4082,2639.0,2638.9,0.74]
[1729634679750,0.59532601,2639.4,2639.0,0.34117]
[1729634679751,0.34117,2639.2,2639.0,0.34117]
[1729634680145,0.34117,2639.2,2638.9,0.3988]
[1729634680449,0.34117,2639.2,2639.1,0.34117]
[1729634680652,0.34117,2639.2,2638.9,0.3988]
[1729634680850,0.34117,2639.2,2639.1,0.34117]
[1729634681244,0.34118,2639.1,2639.0,0.34118]
[1729634682850,0.73976,2639.3,2639.1,0.34117]
[1729634683045,0.73976,2639.3,2639.2,0.74686]
[1729634683242,0.3986,2639.3,2639.2,0.74686]
[1729634683841,0.3986,2639.3,2639.2,0.4057]
[1729634684050,0.73975,2639.3,2639.2,0.74686]
[1729634684443,4.19666673,2639.7,2639.2,0.4057]
[1729634684647,0.4235,2639.6,2639.2,0.4057]
[1729634684848,0.34115,2639.3,2639.2,0.74685]
[1729634687157,0.34115,2639.3,2639.2,0.4057]
[1729634689062,1.47020155,2639.6,2639.2,0.4057]
[1729634689063,0.34114,2639.4,2639.3,0.34114]
[1729634689255,0.60989938,2639.6,2639.3,0.34115]
[1729634689556,0.34113,2639.5,2639.3,0.34115]
[1729634690051,0.34113,2639.5,2639.2,3.3657]
[1729634690250,0.34113,2639.5,2639.3,0.34114]
[1729634690451,0.34113,2639.5,2639.4,0.3919]
[1729634691760,0.4235,2639.6,2639.4,0.3919]
[1729634692055,3.2078,2639.9,2639.4,3.3519]
[1729634692255,0.3411,2639.7,2639.5,0.34112]
[1729634692556,0.3411,2639.7,2639.6,0.34111]
[1729634692757,0.34109,2639.8,2639.6,0.34111]
[1729634692959,0.34109,2639.8,2639.7,0.4208]
[1729634696860,3.6218,2639.9,2639.5,0.34112]
[1729634697068,0.34112,2639.5,2639.0,6.1678]
[1729634697260,0.4085,2639.4,2639.3,0.34115]
[1729634697765,0.74964,2639.4,2639.3,0.34115]
[1729634698366,0.4085,2639.4,2639.3,0.34115]
[1729634698667,0.4085,2639.4,2639.2,0.8076]
[1729634698865,0.34117,2639.2,2639.0,0.34118]
[1729634699067,0.73865,2639.3,2638.8,0.85304]
[1729634699266,0.3975,2639.3,2638.7,7.3884]
[1729634699466,0.34117,2639.2,2638.7,7.3884]
[1729634699667,0.3975,2639.3,2638.7,7.3884]
[1729634699867,0.73866,2639.3,2639.1,0.34117]
[1729634700368,0.73866,2639.3,2639.2,0.34116]
[1729634700369,0.3975,2639.3,2639.2,0.34116]
[1729634701573,0.34112,2639.5,2639.4,0.34113]
[1729634702372,0.7879,2639.7,2639.4,0.34113]
[1729634702570,0.34112,2639.6,2639.4,0.34113]
[1729634703276,1.129,2639.7,2639.6,0.34111]
[1729634703490,0.3992,2639.7,2639.6,0.34111]
[1729634704382,3.54888,2639.9,2639.8,0.34108]
[1729634704879,0.34112,2639.6,2639.4,0.34114]
[1729634705080,0.4146,2639.5,2639.4,0.34114]
[1729634706581,0.75573,2639.5,2639.4,0.34114]
[1729634706879,0.4146,2639.5,2639.3,1.18114]
[1729634707081,0.75573,2639.5,2639.3,1.18114]
[1729634707283,0.75573,2639.5,2639.4,0.34114]
[1729634707593,0.75573,2639.5,2639.3,1.18114]
[1729634707594,0.4146,2639.5,2639.3,1.18114]
[1729634707774,0.75573,2639.5,2639.3,0.84]
[1729634708081,0.75572,2639.5,2639.4,0.34114]
[1729634708284,0.4146,2639.5,2639.4,0.34114]
[1729634711177,3.5771,2640.0,2639.3,0.84]
[1729634711381,1.38407,2640.0,2639.8,0.34108]
[1729634711590,1.38407,2640.0,2639.9,0.75247]
[1729634711787,0.6259,2640.0,2639.9,0.75247]
[1729634712684,0.2,2640.0,2639.9,0.75247]
[1729634713085,0.2,2640.0,2639.9,1.15837]
[1729634715287,0.34096,2640.8,2640.5,0.34098]
[1729634715490,1.70413,2641.9,2640.7,2.96]
[1729634715491,0.34094,2641.0,2640.7,2.96]
[1729634715683,0.3974,2641.1,2640.8,0.4232]
[1729634715884,0.4208,2641.3,2641.0,0.34093]
[1729634716080,0.7617,2641.3,2641.0,0.34093]
[1729634716285,0.34091,2641.2,2641.0,0.34093]
[1729634716484,0.34091,2641.2,2640.9,3.30093]
[1729634716787,0.7617,2641.3,2641.0,0.34092]
[1729634716985,3.2078,2641.5,2641.0,3.7864]
[1729634717188,3.2078,2641.5,2640.9,2.96]
[1729634717189,3.2078,2641.5,2640.9,6.1678]
[1729634717382,0.3409,2641.3,2640.9,6.1678]
[1729634717691,0.3409,2641.3,2641.0,0.34092]
[1729634718090,3.2078,2641.5,2641.0,0.34092]
[1729634718481,0.3409,2641.2,2641.0,0.34092]
[1729634718688,0.3409,2641.2,2640.9,6.1678]
[1729634718989,3.2078,2641.5,2640.9,6.1678]
[1729634719191,3.2078,2641.2,2640.5,6.1678]
[1729634719394,0.34098,2640.6,2640.5,3.2078]
[1729634720189,3.2078,2640.8,2640.3,2.96]
[1729634720393,0.34101,2640.4,2640.2,0.8118]
[1729634720689,0.8524,2640.8,2640.2,0.8118]
[1729634720690,0.34102,2640.3,2640.2,0.8118]
[1729634721292,0.34103,2640.2,2640.1,6.1678]
[1729634721893,0.34103,2640.2,2640.1,3.2078]
[1729634728701,0.34104,2640.1,2640.0,2.96]
[1729634742620,0.8371,2640.5,2639.8,4.0099]
[1729634742907,0.34106,2640.1,2639.9,3.30107]
[1729634743600,0.85252,2640.4,2639.9,2.96]
[1729634743914,0.34106,2640.0,2639.9,3.30107]
[1729634745114,0.85252,2640.4,2639.9,3.30107]
[1729634745306,0.34106,2640.1,2639.9,3.30107]
[1729634745505,0.34106,2640.0,2639.9,2.96]
[1729634745711,0.34106,2640.0,2639.9,3.30107]
[1729634746411,0.8371,2640.5,2639.9,2.96]
[1729634746616,0.34101,2640.4,2640.3,0.34102]
[1729634746913,0.34101,2640.4,2640.3,0.3892]
[1729634749012,0.34101,2640.4,2640.3,0.73021]
[1729634749210,0.752,2640.5,2640.3,0.73021]
[1729634749411,0.34098,2640.6,2640.5,0.34099]
[1729634749612,0.34097,2640.7,2640.4,3.301]
[1729634749807,0.34098,2640.6,2640.4,3.301]
[1729634750112,0.34099,2640.5,2640.4,2.96]
[1729634750517,0.4138,2640.8,2640.4,2.96]
[1729634750711,0.34098,2640.6,2640.4,3.301]
[1729634751512,0.4138,2640.8,2640.4,2.96]
[1729634751718,0.34099,2640.5,2640.4,2.96]
[1729634752213,0.34099,2640.5,2640.4,3.30101]
[1729634753020,0.4138,2640.8,2640.3,0.3892]
[1729634753313,0.4138,2640.8,2639.9,0.4169]
[1729634753314,0.34106,2640.0,2639.9,0.4169]
[1729634753706,0.85254,2640.4,2639.8,0.73798]
[1729634753707,0.34107,2639.9,2639.8,0.73798]
[1729634754112,1.2125,2640.3,2639.8,0.73798]
[1729634754113,0.34106,2640.0,2639.8,0.73798]
[1729634754310,1.2125,2640.3,2639.8,0.3969]
[1729634754510,0.34107,2639.9,2639.8,0.3969]
[1729634755812,0.34106,2640.0,2639.8,0.73798]
[1729634756822,1.2125,2640.3,2639.8,0.3969]
[1729634757023,0.34107,2640.0,2639.8,0.73798]
[1729634759421,0.34107,2639.9,2639.8,0.3969]
[1729634759725,0.34107,2640.0,2639.8,0.73798]
[1729634760221,1.2125,2640.3,2639.8,0.3969]
[1729634760419,0.34107,2639.9,2639.8,0.3969]
[1729634762023,0.34107,2640.0,2639.8,0.3969]
[1729634762223,0.34107,2640.0,2639.9,0.3935]
[1729634766029,0.34105,2640.1,2639.9,0.73457]
[1729634766223,0.3902,2640.3,2639.9,3.3535]
[1729634766429,0.3881,2640.6,2640.2,2.96]
[1729634766628,0.341,2640.5,2640.3,1.13911]
[1729634767231,0.3891,2640.9,2640.3,0.7981]
[1729634767435,0.3891,2640.9,2640.3,4.0059]
[1729634767436,0.3881,2640.8,2640.3,4.0059]
[1729634767641,0.34098,2640.7,2640.5,0.34099]
[1729634768133,0.3881,2640.8,2640.3,4.0059]
[1729634768537,0.4005,2641.0,2640.5,2.96]
[1729634768841,4.05994,2641.6,2640.9,2.96]
[1729634769044,4.05994,2641.6,2641.0,1.2292]
[1729634769237,0.34091,2641.2,2641.0,1.57013]
[1729634769433,3.39850159,2641.6,2641.0,1.2292]
[1729634769637,0.34088,2641.5,2641.2,0.3409]
[1729634769841,0.34089,2641.3,2641.1,2.96]
[1729634770040,0.34089,2641.3,2641.0,1.2292]
[1729634770240,3.2078,2641.6,2641.0,5.0156]
[1729634770535,0.34088,2641.4,2641.2,0.3409]
[1729634771140,0.34087,2641.5,2641.2,0.3409]
[1729634771747,0.34087,2641.5,2641.2,3.5487]
[1729634772448,0.34085,2641.6,2641.2,3.2078]
[1729634772648,0.34087,2641.5,2641.2,3.5487]
[1729634773044,1.36690824,2641.7,2641.2,3.5487]
[1729634773247,0.34088,2641.4,2641.2,3.5487]
[1729634773745,1.36690824,2641.7,2641.2,3.5487]
[1729634773746,0.34087,2641.5,2641.2,3.5487]
[1729634774043,1.37195076,2641.7,2641.2,3.5487]
[1729634774237,0.34089,2641.3,2641.2,3.2078]
[1729634774434,4.33195076,2641.7,2641.2,3.2078]
[1729634774637,0.34089,2641.3,2641.2,3.2078]
[1729634775046,0.34088,2641.4,2641.2,3.2078]
[1729634776139,1.37195076,2641.7,2641.2,3.2078]
[1729634776346,0.34089,2641.3,2641.2,3.2078]
[1729634776745,0.34089,2641.3,2641.2,6.9942]
[1729634776938,0.34089,2641.3,2641.2,3.2078]
[1729634778645,0.34089,2641.3,2641.0,1.57012]
[1729634778646,0.34092,2641.1,2641.0,0.8064]
[1729634780552,0.34094,2640.9,2640.8,3.2078]
[1729634780754,0.34094,2641.0,2640.8,3.2078]
[1729634781258,0.34094,2641.0,2640.8,3.6281]
[1729634781558,2.96,2641.4,2640.8,3.6281]
[1729634781559,0.34094,2640.9,2640.8,3.6281]
[1729634782946,0.34094,2640.9,2640.8,7.4145]
[1729634783353,0.34094,2640.9,2640.8,0.4203]
[1729634783852,0.34096,2640.8,2640.6,0.74618]
[1729634784448,1.2161,2641.2,2640.6,0.74618]
[1729634784647,0.34095,2640.9,2640.6,0.74618]
[1729634784844,0.34095,2640.9,2640.6,0.4052]
[1729634785050,1.2161,2641.2,2640.6,0.4052]
[1729634785250,0.34095,2640.9,2640.6,0.74617]
[1729634785654,0.34095,2640.8,2640.6,0.74618]
[1729634785852,0.34096,2640.8,2640.6,0.74618]
[1729634786354,0.34095,2640.9,2640.6,0.74618]
[1729634786556,1.2161,2641.2,2640.6,0.74618]
[1729634786857,1.2161,2641.2,2640.6,3.95398]
[1729634786858,0.34095,2640.9,2640.6,3.95398]
[1729634787065,0.34095,2640.9,2640.6,3.613]
[1729634787249,0.34095,2640.9,2640.7,0.34097]
[1729634787850,0.34095,2640.9,2640.6,3.613]
[1729634788155,0.34095,2640.9,2640.6,3.95397]
[1729634788356,0.34095,2640.9,2640.7,0.34097]
[1729634788560,0.34095,2640.9,2640.6,3.613]
[1729634788761,0.34095,2640.9,2640.6,3.95397]
[1729634789849,0.34095,2640.9,2640.7,0.34097]
[1729634790054,1.2161,2641.2,2640.6,3.95397]
[1729634790250,0.34095,2640.9,2640.6,3.95397]
[1729634790450,0.34095,2640.9,2640.6,0.74617]
[1729634791157,0.34095,2640.9,2640.6,3.95397]
[1729634791558,0.34095,2640.9,2640.6,0.74617]
[1729634791859,0.34095,2640.9,2640.6,3.95397]
[1729634792062,0.34095,2640.9,2640.6,0.4052]
[1729634792265,0.34095,2640.9,2640.7,0.34097]
[1729634793158,1.2161,2641.2,2640.7,3.7864]
[1729634793159,0.4131,2641.2,2640.7,3.7864]
[1729634793355,0.34092,2641.1,2640.9,0.34094]
[1729634793551,0.4131,2641.2,2641.0,0.7735]
[1729634793757,0.75401,2641.2,2641.0,1.11443]
[1729634794258,2.11401,2641.2,2641.0,2.47443]
[1729634796262,1.7009,2641.2,2641.1,1.36]
[1729634796957,0.4167,2641.5,2641.1,1.36]
[1729634797154,0.34089,2641.3,2641.2,1.36]
[1729634797364,1.70089,2641.3,2641.2,1.36]
[1729634798365,1.7767,2641.5,2641.2,1.7009]
[1729634798565,1.70089,2641.4,2641.3,1.36]
[1729634798960,1.70089,2641.4,2641.2,1.7009]
[1729634799868,1.70089,2641.4,2641.3,0.34089]
[1729634800361,1.70088,2641.4,2641.3,0.34089]
[1729634800565,1.70088,2641.4,2641.2,1.36]
[1729634800765,1.70088,2641.4,2641.2,1.70089]
[1729634801964,1.70088,2641.4,2641.3,1.36]
[1729634802965,1.70088,2641.4,2641.1,0.749]
[1729634802966,1.36,2641.4,2641.2,1.36]
[1729634803266,1.7009,2641.3,2641.2,1.36]
[1729634804572,0.4167,2641.5,2641.2,1.36]
[1729634804760,0.34088,2641.4,2641.3,1.36]
[1729634804961,0.75757,2641.5,2641.3,1.70088]
[1729634805162,0.75757,2641.5,2641.4,1.36]
[1729634805359,3.2078,2641.8,2641.4,1.36]
[1729634805360,3.2078,2641.8,2641.4,5.5564]
[1729634805663,0.34086,2641.5,2641.4,1.7708]
[1729634806362,3.2078,2642.1,2641.4,6.9164]
[1729634806562,0.18679876,2642.4,2642.0,4.5678]
[1729634806759,1.36,2642.6,2642.3,1.36]
[1729634806967,0.19064735,2642.6,2642.1,1.52038]
[1729634807162,0.4223,2642.5,2642.4,1.36]
[1729634807369,0.3407,2642.8,2642.4,1.36]
[1729634807565,1.70071,2642.7,2642.6,1.36]
[1729634807767,1.70073,2642.6,2642.4,1.36]
[1729634807968,0.34073,2642.6,2642.5,1.36]
[1729634808164,3.2078,2642.9,2642.3,3.2078]
[1729634808364,3.2078,2642.9,2642.6,3.30071]
[1729634808564,3.2078,2642.9,2642.7,0.4234]
[1729634808776,0.3407,2642.8,2642.7,0.4234]
[1729634808973,6.1678,2643.3,2642.7,0.4234]
[1729634809164,0.34069,2642.9,2642.7,0.4234]
[1729634809370,0.3407,2642.8,2642.7,0.4234]
[1729634809766,0.3407,2642.8,2642.3,3.2078]
[1729634809767,2.96,2643.1,2642.3,3.2078]
[1729634809973,2.96,2643.1,2642.2,0.4013]
[1729634809974,0.34073,2642.6,2642.2,0.4013]
[1729634810270,0.4147,2642.5,2642.3,0.34076]
[1729634810571,0.34071,2642.7,2642.4,2.96]
[1729634810872,0.3407,2642.8,2642.4,3.30075]
[1729634811272,0.4147,2643.2,2642.6,2.96]
[1729634811478,0.4147,2643.2,2642.7,0.8238]
[1729634811866,0.75535,2643.2,2642.8,0.4066]
[1729634812068,0.4039,2643.5,2642.8,3.3666]
[1729634812275,0.4039,2643.5,2643.0,0.34067]
[1729634812476,0.4039,2643.5,2642.8,6.5744]
[1729634812477,3.3639,2643.5,2642.8,0.4066]
[1729634812677,0.34064,2643.3,2643.0,0.34067]
[1729634812882,0.34064,2643.2,2642.9,3.30068]
[1729634813273,0.4039,2643.5,2642.9,2.96]
[1729634813484,3.3639,2643.5,2642.7,1.1645]
[1729634813680,0.34069,2642.9,2642.7,0.8238]
[1729634813878,4.05935,2643.4,2642.7,0.8238]
[1729634814078,0.3407,2642.8,2642.7,0.8238]
[1729634814274,0.85159,2643.3,2642.7,0.8238]
[1729634814481,0.34069,2642.9,2642.7,0.8238]
[1729634814780,0.3407,2642.8,2642.7,0.8238]
[1729634815184,0.34069,2642.9,2642.7,0.8238]
[1729634815385,0.85159,2643.3,2642.7,0.8238]
[1729634815681,0.34075,2642.5,2642.2,6.50857]
[1729634815879,0.34075,2642.5,2642.2,7.0002]
[1729634816090,0.85175,2642.8,2642.2,3.7924]
[1729634816296,0.34076,2642.4,2642.2,3.7924]
[1729634816597,5.01724,2642.9,2642.2,0.8324]
[1729634816797,0.18637729,2642.8,2642.2,0.8324]
[1729634816997,0.34076,2642.3,2642.2,0.8324]
[1729634817197,2.96,2642.7,2641.9,3.2078]
[1729634817399,0.34078,2642.2,2641.9,3.2078]
[1729634817594,0.34077,2642.3,2641.9,3.5486]
[1729634817795,0.34077,2642.3,2642.0,0.34079]
[1729634818101,0.34076,2642.4,2642.2,2.96]
[1729634818291,0.34074,2642.5,2642.2,3.30077]
[1729634818700,0.34074,2642.5,2642.2,2.96]
[1729634818893,0.4014,2642.4,2642.2,2.96]
[1729634819094,0.4014,2642.4,2642.0,2.96]
[1729634819300,0.34077,2642.2,2641.9,3.54861]
[1729634819899,0.73037,2642.3,2642.0,0.3408]
[1729634820290,0.74215,2642.4,2642.1,0.34078]
[1729634820697,0.4014,2642.4,2641.9,6.1678]
[1729634821002,0.74215,2642.4,2642.1,0.34078]
[1729634821396,0.74215,2642.4,2642.2,0.3879]
[1729634821998,0.4014,2642.4,2642.2,0.72867]
[1729634822703,0.4014,2642.4,2642.2,0.3879]
[1729634822905,0.34076,2642.3,2642.2,0.3879]
[1729634823210,0.3408,2642.0,2641.9,3.2078]
[1729634823903,0.3409,2641.2,2640.9,0.34093]
[1729634824097,0.3409,2641.2,2640.7,3.2078]
[1729634824098,0.34095,2640.9,2640.7,3.2078]
[1729634824292,2.96,2641.1,2640.7,3.2078]
[1729634824498,0.34092,2641.1,2640.7,3.2078]
[1729634824798,3.7659,2641.3,2640.7,3.2078]
[1729634824993,0.34095,2640.9,2640.7,3.2078]
[1729634825904,2.96,2641.1,2640.7,3.2078]
[1729634826108,0.8059,2641.3,2640.7,3.2078]
[1729634826109,0.34095,2640.9,2640.7,3.2078]
[1729634826607,0.34095,2640.8,2640.7,3.2078]
[1729634826903,0.34095,2640.9,2640.7,3.2078]
[1729634827105,0.34095,2640.8,2640.7,3.2078]
[1729634827308,2.96,2640.8,2640.4,3.2078]
[1729634827603,2.96,2640.8,2640.0,2.96]
[1729634827604,0.34103,2640.2,2640.1,3.2078]
[1729634827805,0.34101,2640.5,2640.1,3.54884]
[1729634828001,2.96,2640.6,2640.1,3.2078]
[1729634828202,2.96,2640.6,2640.2,0.34103]
[1729634828412,0.34099,2640.5,2640.2,0.34103]
[1729634828706,2.96,2640.6,2640.1,3.2078]
[1729634828909,0.34101,2640.4,2640.1,3.54884]
[1729634830606,0.34101,2640.4,2640.1,3.2078]
[1729634830810,0.34101,2640.4,2640.1,3.54884]
[1729634831503,0.34102,2640.3,2640.1,3.2078]
[1729634831710,2.96,2640.6,2640.1,3.2078]
[1729634831896,3.2078,2640.8,2640.2,2.96]
[1729634832208,3.2078,2640.8,2640.1,3.2078]
[1729634832209,0.34101,2640.4,2640.3,0.4111]
[1729634832508,2.96,2640.7,2640.3,0.4111]
[1729634832702,0.34101,2640.4,2640.3,0.4111]
[1729634833107,0.341,2640.5,2640.3,0.4111]
[1729634834003,0.34099,2640.6,2640.3,0.75211]
[1729634834407,2.96,2640.7,2640.3,0.75211]
[1729634834408,2.96,2640.7,2640.3,0.4111]
[1729634834597,0.34099,2640.5,2640.3,0.4111]
[1729634835001,3.2078,2640.8,2640.3,0.75211]
[1729634835210,3.2078,2640.8,2640.3,0.4111]
[1729634835410,0.34099,2640.5,2640.3,0.4111]
[1729634836204,0.34099,2640.6,2640.3,0.4111]
[1729634837504,3.2078,2640.8,2640.3,0.4111]
[1729634837705,3.2078,2640.8,2640.7,0.34097]
[1729634838814,0.3994,2641.1,2640.7,3.2078]
[1729634839012,3.30093,2641.0,2640.3,0.76401]
[1729634839307,2.96,2641.0,2640.3,0.423]
[1729634839510,0.34095,2640.9,2640.6,0.34098]
[1729634839706,2.96,2641.0,2640.4,0.4044]
[1729634839914,0.34096,2640.8,2640.4,0.7454]
[1729634840207,0.34096,2640.8,2640.5,0.34099]
[1729634841111,0.34095,2640.9,2640.6,0.34098]
[1729634842609,2.96,2641.0,2640.5,3.2078]
[1729634842814,0.34096,2640.8,2640.5,3.54879]
[1729634843113,0.34096,2640.8,2640.5,3.2078]
[1729634843417,0.34096,2640.8,2640.6,0.34098]
[1729634843613,0.34095,2640.9,2640.6,0.34098]
[1729634843811,2.96,2641.0,2640.4,0.4044]
[1729634844017,0.34099,2640.6,2640.4,0.4044]
[1729634844211,0.34099,2640.5,2640.4,0.4044]
[1729634844516,0.341,2640.5,2640.3,0.423]
[1729634845217,0.72999,2640.6,2640.3,0.76402]
[1729634845418,0.34099,2640.5,2640.3,0.76402]
[1729634845620,0.72999,2640.6,2640.3,0.76402]
[1729634845820,0.72999,2640.6,2640.4,0.34101]
[1729634846624,0.34099,2640.5,2640.3,0.76401]
[1729634846923,0.72999,2640.6,2640.3,0.76401]
[1729634847121,0.34099,2640.5,2640.3,0.76401]
[1729634848312,0.72999,2640.6,2640.4,0.34101]
[1729634848716,0.341,2640.5,2640.3,0.76401]
[1729634849313,0.389,2640.6,2640.3,0.76401]
[1729634849521,0.34101,2640.4,2640.3,0.423]
[1729634849716,0.389,2640.6,2640.3,0.76402]
[1729634849717,0.341,2640.5,2640.3,0.76402]
[1729634849912,0.72999,2640.6,2640.4,0.34101]
[1729634850424,0.34099,2640.5,2640.3,0.423]
[1729634850619,0.34099,2640.5,2640.3,0.76401]
[1729634850916,0.34099,2640.5,2640.3,0.423]
[1729634851121,0.34099,2640.5,2640.3,0.76401]
[1729634852918,0.34099,2640.5,2640.4,0.34101]
[1729634855423,0.389,2640.6,2640.4,0.34101]
[1729634855922,0.34099,2640.5,2640.4,0.34101]
[1729634858621,0.34101,2640.4,2640.3,0.76401]
[1729634858925,0.389,2640.6,2640.4,0.341]
[1729634858926,0.341,2640.5,2640.4,0.341]
[1729634860527,0.72999,2640.6,2640.3,0.423]
[1729634860727,0.34099,2640.5,2640.4,0.7609]
[1729634863032,0.72999,2640.6,2640.5,0.34099]
[1729634863223,0.389,2640.6,2640.4,0.4199]
[1729634863423,0.34099,2640.5,2640.4,0.7609]
[1729634863621,0.389,2640.6,2640.4,0.4199]
[1729634863825,0.34099,2640.5,2640.4,0.76089]
[1729634865129,0.389,2640.6,2640.4,0.76089]
[1729634865130,0.389,2640.6,2640.4,0.4199]
[1729634865434,0.34099,2640.5,2640.4,0.7609]
[1729634866121,0.72999,2640.6,2640.5,0.34099]
[1729634866431,2.09999,2640.6,2640.5,0.34099]
[1729634867432,2.09998,2640.6,2640.5,0.34099]
[1729634868031,1.37,2640.9,2640.8,0.34095]
[1729634868032,0.34095,2640.9,2640.8,0.34095]
[1729634868232,1.71095,2640.9,2640.8,0.34095]
[1729634868733,1.37,2640.9,2640.8,0.34095]
[1729634868935,1.71094,2640.9,2640.8,0.34095]
[1729634869241,1.71094,2641.0,2640.9,0.34094]
[1729634869531,0.3901,2641.1,2641.0,0.34093]
[1729634869846,0.34087,2641.5,2641.4,0.34088]
[1729634870036,1.71088,2641.4,2641.3,0.34088]
[1729634871028,0.3409,2641.3,2641.2,0.3409]
[1729634871236,1.7109,2641.3,2641.2,0.3409]
[1729634871540,1.7109,2641.3,2641.0,4.5778]
[1729634871541,1.37,2641.3,2641.1,1.37]
[1729634871741,1.37,2641.3,2641.2,0.3409]
[1729634872329,0.34087,2641.5,2641.4,0.34088]
[1729634873338,2.96,2641.7,2641.1,0.8523]
[1729634873542,2.96,2641.7,2641.0,3.2078]
[1729634873543,0.34084,2641.7,2641.6,0.34084]
[1729634873842,0.4197,2641.8,2641.6,0.34085]
[1729634874045,0.76053,2641.8,2641.6,0.34085]
[1729634874735,0.76053,2641.8,2641.7,0.34084]
[1729634875333,0.34084,2641.7,2641.3,3.6058]
[1729634875532,0.34084,2641.7,2641.5,0.34086]
[1729634875730,0.34084,2641.7,2641.6,0.34085]
[1729634876848,0.34084,2641.7,2641.3,3.6058]
[1729634877144,0.34086,2641.6,2641.4,0.34087]
[1729634878140,3.30084,2641.7,2641.4,0.34088]
[1729634879639,2.96,2641.7,2641.4,0.34088]
[1729634880143,3.30085,2641.7,2641.4,0.34088]
[1729634880644,0.34088,2641.4,2640.9,3.617]
[1729634880837,0.3872,2641.3,2641.1,0.34091]
[1729634881032,0.72809,2641.3,2641.1,0.34091]
[1729634881738,2.96,2641.2,2640.9,3.617]
[1729634881942,3.30093,2641.0,2640.9,3.2078]
[1729634882137,0.34099,2640.6,2640.5,3.2078]
[1729634882537,2.96,2640.8,2640.5,3.54879]
[1729634882738,0.34097,2640.7,2640.5,3.54879]
[1729634883448,0.34096,2640.8,2640.6,0.34097]
[1729634883739,0.407,2640.9,2640.5,3.2078]
[1729634883942,0.34097,2640.7,2640.5,3.54878]
[1729634884448,0.34097,2640.7,2640.5,0.34098]
[1729634885355,3.95575,2640.9,2640.3,3.2078]
[1729634885541,3.6148,2640.9,2640.8,0.34095]
[1729634885744,3.95574,2640.9,2640.8,0.34095]
[1729634886649,6.91575,2640.9,2640.8,0.34095]
[1729634887550,3.70795,2640.9,2640.8,0.34095]
[1729634888753,0.34096,2640.8,2640.7,0.34096]
[1729634889250,3.70795,2640.9,2640.7,0.34096]
[1729634889550,0.34103,2640.2,2639.7,3.2078]
[1729634889756,3.7864,2640.8,2639.8,0.4016]
[1729634889757,6.1678,2640.4,2639.8,0.4016]
[1729634889948,3.3802,2640.6,2639.8,0.822]
[1729634890146,3.30099,2640.6,2640.4,0.341]
[1729634891050,2.96,2640.6,2640.0,0.4138]
[1729634891345,0.3846,2640.5,2640.4,0.34101]
[1729634893653,0.72559,2640.5,2640.4,0.34101]
[1729634894849,0.72559,2640.5,2640.3,0.34101]
[1729634895651,0.3846,2640.5,2640.0,0.4138]
[1729634895849,0.34101,2640.4,2640.2,0.34102]
[1729634896054,0.34104,2640.1,2639.9,0.34106]
[1729634896257,6.1678,2640.4,2640.0,0.34106]